fUSD/lending_fUSD_20240528
["ID","MTS","AMOUNT","RATE_DAILY","PERIOD"]
[328139444,1716930665584,-1036.79,0.00028493,2]
[328139445,1716930665593,-602.93,0.00028493,2]
[328139446,1716930665602,-500.0,0.00028493,2]
[328139447,1716930665612,-1313.69,0.00028493,2]
[328139448,1716930665621,-1592.22,0.00028493,2]
[328139449,1716930665630,-916.61,0.00028493,2]
[328139450,1716930665639,-1158.67,0.00028493,2]
[328139451,1716930665648,-500.0,0.00028493,2]
[328139452,1716930665657,-500.0,0.00028493,2]
[328139453,1716930665667,-2650.73,0.00028493,2]
[328139454,1716930665676,-4639.4,0.00028493,2]
[328139455,1716930665685,-500.0,0.00028493,2]
[328139456,1716930665695,-720.94,0.00028493,2]
[328139457,1716930665704,-850.51,0.00028493,2]
[328139458,1716930665713,-1212.71,0.00028493,2]
[328139459,1716930665723,-1305.79,0.00028493,2]
[328139460,1716930665732,-1077.58,0.00028493,2]
[328139461,1716930665741,-395.94874569,0.00028493,2]
[328139462,1716930665750,-564.13,0.00028493,2]
[328139463,1716930665760,-789.13,0.00028493,2]
[328139464,1716930665770,-928.91,0.00028493,2]
[328139465,1716930665782,-500.0,0.00028493,2]
[328139466,1716930665793,-500.0,0.00028493,2]
[328139467,1716930665802,-920.12,0.00028493,2]
[328139468,1716930665811,-881.35,0.00028493,2]
[328139469,1716930665819,-717.42,0.00028493,2]
[328139470,1716930665828,-500.0,0.00028493,2]
[328139471,1716930665837,-654.73,0.00028493,2]
[328139472,1716930665847,-500.0,0.00028493,2]
[328139473,1716930665856,-500.0,0.00028493,2]
[328139474,1716930665865,-3338.18,0.00028493,2]
[328139475,1716930665875,-500.0,0.00028493,2]
[328139476,1716930665884,-1966.13,0.00028493,2]
[328139477,1716930665893,-570.33,0.00028493,2]
[328139478,1716930665903,-500.0,0.00028493,2]
[328139479,1716930665912,-500.0,0.00028493,2]
[328139480,1716930665921,-500.0,0.00028493,2]
[328139481,1716930665931,-500.0,0.00028493,2]
[328139482,1716930665941,-500.0,0.00028493,2]
[328139483,1716930665950,-1420.49,0.00028493,2]
[328139484,1716930665959,-1625.97,0.00028493,2]
[328139485,1716930665968,-500.0,0.00028493,2]
[328139486,1716930665978,-647.0,0.00028493,2]
[328139487,1716930665987,-500.0,0.00028493,2]
[328139488,1716930665996,-1101.55,0.00028493,2]
[328139489,1716930666006,-500.0,0.00028493,2]
[328139490,1716930666016,-5271.34,0.00028493,2]
[328139491,1716930666025,-4085.09,0.00028493,2]
[328139492,1716930666035,-896.38,0.00028493,2]
[328139493,1716930666047,-500.0,0.00028493,2]
[328139494,1716930666056,-500.0,0.00028493,2]
[328139495,1716930666065,-3085.09,0.00028493,2]
[328139496,1716930666074,-1027.97,0.00028493,2]
[328139497,1716930666083,-678.18,0.00028493,2]
[328139498,1716930666093,-607.8,0.00028493,2]
[328139499,1716930666102,-707.12,0.00028493,2]
[328139500,1716930666111,-500.0,0.00028493,2]
[328139501,1716930666122,-2974.94,0.00028493,2]
[328139502,1716930666131,-1217.15,0.00028493,2]
[328139503,1716930666141,-1190.26,0.00028493,2]
[328139504,1716930666151,-592.19,0.00028493,2]
[328139505,1716930666160,-500.0,0.00028493,2]
[328139506,1716930666170,-4371.46,0.00028493,2]
[328139507,1716930666179,-500.0,0.00028493,2]
[328139508,1716930666189,-1044.37,0.00028493,2]
[328139509,1716930666197,-288.6618903,0.00028493,2]
[328139510,1716930666207,-500.0,0.00028493,2]
[328139511,1716930666217,-500.0,0.00028493,2]
[328139512,1716930666227,-513.35,0.00028493,2]
[328139513,1716930666236,-1474.98,0.00028493,2]
[328139514,1716930666245,-500.0,0.00028493,2]
[328139515,1716930666254,-500.0,0.00028493,2]
[328139516,1716930666263,-3176.31,0.00028493,2]
[328139517,1716930666272,-687.58,0.00028493,2]
[328139518,1716930666281,-3513.06,0.00028493,2]
[328139519,1716930666293,-576.75,0.00028493,2]
[328139520,1716930666306,-500.0,0.00028493,2]
[328139521,1716930666317,-705.7,0.00028493,2]
[328139522,1716930666326,-503.73,0.00028493,2]
[328139523,1716930666335,-500.0,0.00028493,2]
[328139524,1716930666344,-2801.64,0.00028493,2]
[328139525,1716930666354,-986.0,0.000285,2]
[328139526,1716930666364,-155.0,0.00028537,2]
[328139527,1716930666373,-155.48021465,0.00028537,2]
[328139528,1716930666383,-604.0,0.00028674,7]
[328139529,1716930666393,-160.0,0.000287,2]
[328139530,1716930666403,-150.0,0.000287,5]
[328139531,1716930666412,-435.20248114,0.0002874,2]
[328139532,1716930666421,-155.70120435,0.0002874,2]
[328139533,1716930666430,-472.49632202,0.0002874,2]
[328139534,1716930666440,-19623.63845774,0.0002874,2]
[328139535,1716930666449,-159.23883898,0.0002874,2]
[328139536,1716930666458,-6776.29426629,0.00028741,2]
[328139537,1716930666467,-157.052905,0.00028748,26]
[328139538,1716930666476,-1264.4259542,0.00028765,2]
[328139539,1716930666485,-500.0,0.00028767,2]
[328139540,1716930666497,-500.0,0.00028767,2]
[328139541,1716930666506,-909.32,0.00028767,2]
[328139542,1716930666515,-500.0,0.00028767,2]
[328139543,1716930666524,-500.0,0.00028767,2]
[328139544,1716930666534,-500.0,0.00028767,2]
[328139545,1716930666545,-500.0,0.00028767,2]
[328139546,1716930666554,-594.79,0.00028767,2]
[328139547,1716930666563,-500.0,0.00028767,2]
[328139548,1716930666572,-569.9,0.00028767,2]
[328139549,1716930666581,-500.0,0.00028767,2]
[328139550,1716930666590,-500.0,0.00028767,2]
[328139551,1716930666600,-500.0,0.00028767,2]
[328139552,1716930666609,-500.0,0.00028767,2]
[328139553,1716930666618,-500.0,0.00028767,2]
[328139554,1716930666627,-500.0,0.00028767,2]
[328139555,1716930666637,-500.0,0.00028767,2]
[328139556,1716930666647,-500.0,0.00028767,2]
[328139557,1716930666656,-967.79,0.00028767,2]
[328139558,1716930666666,-500.0,0.00028767,2]
[328139559,1716930666675,-1363.1,0.00028767,2]
[328139560,1716930666684,-667.3,0.00028767,2]
[328139561,1716930666694,-527.09,0.00028767,2]
[328139562,1716930666703,-500.0,0.00028767,2]
[328139563,1716930666712,-500.0,0.00028767,2]
[328139564,1716930666722,-500.0,0.00028767,2]
[328139565,1716930666731,-500.0,0.00028767,2]
[328139566,1716930666740,-500.0,0.00028767,2]
[328139567,1716930666749,-500.0,0.00028767,2]
[328139568,1716930666759,-500.0,0.00028767,2]
[328139569,1716930666767,-376.6610684,0.00028767,2]
[328139570,1716930666777,-500.0,0.00028767,2]
[328139571,1716930666786,-500.0,0.00028767,2]
[328139572,1716930666796,-500.0,0.00028767,2]
[328139573,1716930666805,-813.82,0.00028767,2]
[328139574,1716930666814,-224.55364761,0.00028767,2]
[328139575,1716930666823,-670.95,0.00028767,2]
[328139576,1716930666833,-500.0,0.00028767,2]
[328139577,1716930666842,-500.0,0.00028767,2]
[328139578,1716930666851,-682.1,0.00028767,2]
[328139579,1716930666861,-613.37,0.00028767,2]
[328139580,1716930666870,-500.0,0.00028767,2]
[328139581,1716930666879,-870.5,0.00028767,2]
[328139582,1716930666888,-500.0,0.00028767,2]
[328139583,1716930666898,-746.34,0.00028767,2]
[328139584,1716930666907,-500.0,0.00028767,2]
[328139585,1716930666916,-500.0,0.00028767,2]
[328139586,1716930666926,-500.0,0.00028767,2]
[328139587,1716930666935,-500.0,0.00028767,2]
[328139588,1716930666944,-613.05,0.00028767,2]
[328139589,1716930666953,-500.0,0.00028767,2]
[328139590,1716930666963,-758.6,0.00028767,2]
[328139591,1716930666971,-500.0,0.00028767,2]
[328139592,1716930666980,-500.0,0.00028767,2]
[328139593,1716930666989,-500.0,0.00028767,2]
[328139594,1716930666999,-500.0,0.00028767,2]
[328139595,1716930667008,-527.93,0.00028767,2]
[328139596,1716930667018,-535.29,0.00028767,2]
[328139597,1716930667027,-891.34,0.00028767,2]
[328139598,1716930667036,-500.0,0.00028767,2]
[328139599,1716930667047,-500.0,0.00028767,2]
[328139600,1716930667056,-500.0,0.00028767,2]
[328139601,1716930667065,-500.0,0.00028767,2]
[328139602,1716930667075,-556.26,0.00028767,2]
[328139603,1716930667085,-617.75,0.00028767,2]
[328139604,1716930667094,-500.0,0.00028767,2]
[328139605,1716930667104,-655.52,0.00028767,2]
[328139606,1716930667113,-500.0,0.00028767,2]
[328139607,1716930667123,-982.73,0.00028767,2]
[328139608,1716930667132,-500.0,0.00028767,2]
[328139609,1716930667142,-500.0,0.00028767,2]
[328139610,1716930667151,-500.0,0.00028767,2]
[328139611,1716930667160,-500.0,0.00028767,2]
[328139612,1716930667169,-879.75,0.00028767,2]
[328139613,1716930667178,-500.0,0.00028767,2]
[328139614,1716930667188,-500.0,0.00028767,2]
[328139615,1716930667197,-500.0,0.00028767,2]
[328139616,1716930667206,-500.0,0.00028767,2]
[328139617,1716930667216,-592.34419285,0.00028767,2]
[328139618,1716930667225,-500.0,0.00028767,2]
[328139619,1716930667236,-598.93,0.00028767,2]
[328139620,1716930667245,-500.0,0.00028767,2]
[328139621,1716930667254,-607.01,0.00028767,2]
[328139622,1716930667263,-869.48,0.00028767,2]
[328139623,1716930667273,-500.0,0.00028767,2]
[328139624,1716930667281,-500.0,0.00028767,2]
[328139625,1716930667290,-500.0,0.00028767,2]
[328139626,1716930667302,-515.25,0.00028767,2]
[328139627,1716930667315,-500.0,0.00028767,2]
[328139628,1716930667324,-501.39,0.00028767,2]
[328139629,1716930667334,-500.0,0.00028767,2]
[328139630,1716930667343,-500.0,0.00028767,2]
[328139631,1716930667354,-500.0,0.00028767,2]
[328139632,1716930667363,-500.0,0.00028767,2]
[328139633,1716930667373,-500.0,0.00028767,2]
[328139634,1716930667383,-500.0,0.00028767,2]
[328139635,1716930667392,-500.0,0.00028767,2]
[328139636,1716930667402,-500.0,0.00028767,2]
[328139637,1716930667411,-1260.25,0.00028767,2]
[328139638,1716930667420,-500.0,0.00028767,2]
[328139639,1716930667429,-264.64362224,0.00028767,2]
[328139640,1716930667439,-500.0,0.00028767,2]
[328139641,1716930667448,-500.0,0.00028767,2]
[328139642,1716930667457,-500.0,0.00028767,2]
[328139643,1716930667467,-500.0,0.00028767,2]
[328139644,1716930667476,-500.0,0.00028767,2]
[328139645,1716930667485,-554.17,0.00028767,2]
[328139646,1716930667494,-1185.96,0.00028767,2]
[328139647,1716930667503,-500.0,0.00028767,2]
[328139648,1716930667513,-500.0,0.00028767,2]
[328139649,1716930667522,-500.0,0.00028767,2]
[328139650,1716930667531,-500.0,0.00028767,2]
[328139651,1716930667541,-172.94,0.00028767,2]
[328139652,1716930667551,-500.0,0.00028767,2]
[328139653,1716930667560,-500.0,0.00028767,2]
[328139654,1716930667569,-475.67456634,0.00028767,2]
[328139655,1716930667578,-500.0,0.00028767,2]
[328139656,1716930667588,-500.0,0.00028767,2]
[328139657,1716930667597,-500.0,0.00028767,2]
[328139658,1716930667606,-500.0,0.00028767,2]
[328139659,1716930667615,-500.0,0.00028767,2]
[328139660,1716930667625,-500.0,0.00028767,2]
[328139661,1716930667634,-500.0,0.00028767,2]
[328139662,1716930667643,-512.07,0.00028767,2]
[328139663,1716930667652,-151.0,0.00028767,7]
[328139664,1716930667661,-500.0,0.00028767,2]
[328139665,1716930667671,-500.0,0.00028767,2]
[328139666,1716930667680,-500.0,0.00028767,2]
[328139667,1716930667689,-500.0,0.00028767,2]
[328139668,1716930667699,-577.36,0.00028767,2]
[328139669,1716930667708,-500.0,0.00028767,2]
[328139670,1716930667717,-500.0,0.00028767,2]
[328139671,1716930667727,-544.23,0.00028767,2]
[328139672,1716930667736,-500.0,0.00028767,2]
[328139673,1716930667745,-917.76,0.00028767,2]
[328139674,1716930667755,-500.0,0.00028767,2]
[328139675,1716930667764,-500.0,0.00028767,2]
[328139676,1716930667773,-500.0,0.00028767,2]
[328139677,1716930667782,-500.0,0.00028767,2]
[328139678,1716930667792,-715.45,0.00028767,2]
[328139679,1716930667803,-504.89,0.00028767,2]
[328139680,1716930667812,-500.0,0.00028767,2]
[328139681,1716930667821,-500.0,0.00028767,2]
[328139682,1716930667831,-500.0,0.00028767,2]
[328139683,1716930667840,-500.0,0.00028767,2]
[328139684,1716930667850,-500.0,0.00028767,2]
[328139685,1716930667859,-937.7,0.00028767,2]
[328139686,1716930667869,-611.87,0.00028767,2]
[328139687,1716930667879,-824.89,0.00028767,2]
[328139688,1716930667888,-500.0,0.00028767,2]
[328139689,1716930667898,-500.0,0.00028767,2]
[328139690,1716930667907,-500.0,0.00028767,2]
[328139691,1716930667916,-500.0,0.00028767,2]
[328139692,1716930667926,-739.81,0.00028767,2]
[328139693,1716930667935,-500.0,0.00028767,2]
[328139694,1716930667944,-500.0,0.00028767,2]
[328139695,1716930667954,-641.13673708,0.00028767,2]
[328139696,1716930667963,-1320.63,0.00028767,2]
[328139697,1716930667973,-500.0,0.00028767,2]
[328139698,1716930667983,-1793.48,0.00028767,2]
[328139699,1716930667992,-1192.64,0.00028767,2]
[328139700,1716930668001,-500.0,0.00028767,2]
[328139701,1716930668010,-500.0,0.00028767,2]
[328139702,1716930668020,-500.0,0.00028767,2]
[328139703,1716930668029,-850.59,0.00028767,2]
[328139704,1716930668039,-550.9,0.00028767,2]
[328139705,1716930668049,-656.92,0.00028767,2]
[328139706,1716930668059,-9315.09,0.00028767,2]
[328139707,1716930668183,-806.35,0.00028767,2]
[328139708,1716930668193,-500.0,0.00028767,2]
[328139709,1716930668202,-15327.51,0.00028767,2]
[328139710,1716930668211,-635.68,0.00028767,2]
[328139711,1716930668220,-3419.04,0.00028767,2]
[328139712,1716930668229,-1271.68,0.00028767,2]
[328139713,1716930668238,-233.497267,0.00028767,7]
[328139714,1716930668247,-525.9,0.00028767,2]
[328139715,1716930668256,-1237.95,0.00028767,2]
[328139716,1716930668265,-151.0,0.00028767,7]
[328139717,1716930668275,-5036.02,0.00028767,2]
[328139718,1716930668284,-2402.16,0.00028767,2]
[328139719,1716930668294,-270.17557818,0.00028767,2]
[328139720,1716930668306,-151.0,0.00028767,7]
[328139721,1716930668317,-583.74,0.00028767,2]
[328139722,1716930668326,-500.0,0.00028767,2]
[328139723,1716930668335,-1081.68,0.00028767,2]
[328139724,1716930668345,-2135.42,0.00028767,2]
[328139725,1716930668354,-500.0,0.00028767,2]
[328139726,1716930668364,-500.0,0.00028767,2]
[328139727,1716930668374,-151.0,0.00028767,7]
[328139728,1716930668384,-500.0,0.00028767,2]
[328139729,1716930668393,-500.0,0.00028767,2]
[328139730,1716930668402,-151.0,0.00028767,7]
[328139731,1716930668411,-874.24,0.00028767,2]
[328139732,1716930668421,-832.12,0.00028767,2]
[328139733,1716930668430,-889.71,0.00028767,2]
[328139734,1716930668440,-1494.87,0.00028767,2]
[328139735,1716930668449,-588.22,0.00028767,2]
[328139736,1716930668458,-753.43,0.00028767,2]
[328139737,1716930668467,-500.0,0.00028767,2]
[328139738,1716930668476,-656.49,0.00028767,2]
[328139739,1716930668485,-1040.11,0.00028767,2]
[328139740,1716930668495,-5379.01,0.00028767,2]
[328139741,1716930668504,-1151.4,0.00028767,2]
[328139742,1716930668513,-657.54,0.00028767,2]
[328139743,1716930668523,-2503.88,0.00028767,2]
[328139744,1716930668532,-500.0,0.00028767,2]
[328139745,1716930668541,-500.0,0.00028767,2]
[328139746,1716930668553,-151.0,0.00028767,7]
[328139747,1716930668562,-500.0,0.00028767,2]
[328139748,1716930668571,-992.19,0.00028767,2]
[328139749,1716930668579,-500.0,0.00028767,2]
[328139750,1716930668589,-523.58,0.00028767,2]
[328139751,1716930668599,-591.51,0.00028767,2]
[328139752,1716930668608,-2469.11,0.00028767,2]
[328139753,1716930668618,-500.0,0.00028767,2]
[328139754,1716930668627,-604.6,0.00028767,2]
[328139755,1716930668636,-500.0,0.00028767,2]
[328139756,1716930668645,-500.0,0.00028767,2]
[328139757,1716930668655,-1881.26,0.00028767,2]
[328139758,1716930668665,-1071.3,0.00028767,2]
[328139759,1716930668675,-1270.47,0.00028767,2]
[328139760,1716930668685,-8259.77,0.00028767,2]
[328139761,1716930668694,-500.0,0.00028767,2]
[328139762,1716930668704,-1123.23,0.00028767,2]
[328139763,1716930668714,-500.0,0.00028767,2]
[328139764,1716930668723,-253.18241454,0.00028767,2]
[328139765,1716930668733,-2563.92,0.00028767,2]
[328139766,1716930668742,-500.0,0.00028767,2]
[328139767,1716930668752,-1027.88,0.00028767,2]
[328139768,1716930668761,-772.72,0.00028767,2]
[328139769,1716930668771,-500.0,0.00028767,2]
[328139770,1716930668781,-887.31,0.00028767,2]
[328139771,1716930668791,-914.87,0.00028767,2]
[328139772,1716930668804,-500.0,0.00028767,2]
[328139773,1716930668814,-4971.2,0.00028767,2]
[328139774,1716930668823,-500.0,0.00028767,2]
[328139775,1716930668832,-1127.13,0.00028767,2]
[328139776,1716930668842,-571.26,0.00028767,2]
[328139777,1716930668851,-500.0,0.00028767,2]
[328139778,1716930668861,-590.27,0.00028767,2]
[328139779,1716930668870,-500.0,0.00028767,2]
[328139780,1716930668879,-500.0,0.00028767,2]
[328139781,1716930668888,-500.0,0.00028767,2]
[328139782,1716930668898,-606.32,0.00028767,2]
[328139783,1716930668907,-824.0,0.00028767,2]
[328139784,1716930668917,-500.0,0.00028767,2]
[328139785,1716930668926,-853.64,0.00028767,2]
[328139786,1716930668935,-745.85,0.00028767,2]
[328139787,1716930668945,-585.71,0.00028767,2]
[328139788,1716930668954,-1137.45,0.00028767,2]
[328139789,1716930668963,-1448.06,0.00028767,2]
[328139790,1716930668972,-539.51,0.00028767,2]
[328139791,1716930668981,-2302.76,0.00028767,2]
[328139792,1716930668991,-3336.18,0.00028767,2]
[328139793,1716930668999,-500.0,0.00028767,2]
[328139794,1716930669009,-1236.12,0.00028767,2]
[328139795,1716930669019,-500.0,0.00028767,2]
[328139796,1716930669029,-500.0,0.00028767,2]
[328139797,1716930669038,-500.0,0.00028767,2]
[328139798,1716930669049,-500.0,0.00028767,2]
[328139799,1716930669059,-885.34,0.00028767,2]
[328139800,1716930669068,-1036.79,0.00028767,2]
[328139801,1716930669078,-602.93,0.00028767,2]
[328139802,1716930669088,-13852.98,0.00028767,2]
[328139803,1716930669097,-500.0,0.00028767,2]
[328139804,1716930669107,-1313.69,0.00028767,2]
[328139805,1716930669116,-1592.22,0.00028767,2]
[328139806,1716930669125,-916.61,0.00028767,2]
[328139807,1716930669135,-1158.67,0.00028767,2]
[328139808,1716930669144,-500.0,0.00028767,2]
[328139809,1716930669154,-2650.73,0.00028767,2]
[328139810,1716930669163,-500.0,0.00028767,2]
[328139811,1716930669173,-4639.4,0.00028767,2]
[328139812,1716930669182,-500.0,0.00028767,2]
[328139813,1716930669191,-720.94,0.00028767,2]
[328139814,1716930669200,-850.51,0.00028767,2]
[328139815,1716930669210,-1212.71,0.00028767,2]
[328139816,1716930669219,-1305.79,0.00028767,2]
[328139817,1716930669229,-1077.58,0.00028767,2]
[328139818,1716930669238,-564.13,0.00028767,2]
[328139819,1716930669248,-789.13,0.00028767,2]
[328139821,1716930669257,-928.91,0.00028767,2]
[328139822,1716930669267,-500.0,0.00028767,2]
[328139824,1716930669276,-500.0,0.00028767,2]
[328139825,1716930669285,-920.12,0.00028767,2]
[328139826,1716930669294,-881.35,0.00028767,2]
[328139828,1716930669309,-717.42,0.00028767,2]
[328139829,1716930669320,-500.0,0.00028767,2]
[328139830,1716930669329,-654.73,0.00028767,2]
[328139831,1716930669338,-500.0,0.00028767,2]
[328139832,1716930669347,-500.0,0.00028767,2]
[328139833,1716930669358,-3338.18,0.00028767,2]
[328139834,1716930669367,-500.0,0.00028767,2]
[328139835,1716930669377,-151.0,0.00028767,7]
[328139836,1716930669386,-1966.13,0.00028767,2]
[328139837,1716930669396,-570.33,0.00028767,2]
[328139838,1716930669405,-500.0,0.00028767,2]
[328139839,1716930669415,-500.0,0.00028767,2]
[328139840,1716930669424,-500.0,0.00028767,2]
[328139841,1716930669433,-500.0,0.00028767,2]
[328139842,1716930669443,-1420.49,0.00028767,2]
[328139843,1716930669452,-1625.97,0.00028767,2]
[328139844,1716930669462,-500.0,0.00028767,2]
[328139845,1716930669471,-151.0,0.00028767,7]
[328139846,1716930669480,-647.0,0.00028767,2]
[328139847,1716930669490,-500.0,0.00028767,2]
[328139848,1716930669499,-1101.55,0.00028767,2]
[328139849,1716930669509,-500.0,0.00028767,2]
[328139850,1716930669518,-5271.34,0.00028767,2]
[328139851,1716930669527,-4085.09,0.00028767,2]
[328139852,1716930669537,-896.38,0.00028767,2]
[328139853,1716930669548,-500.0,0.00028767,2]
[328139854,1716930669558,-500.0,0.00028767,2]
[328139855,1716930669566,-3085.09,0.00028767,2]
[328139856,1716930669575,-1027.97,0.00028767,2]
[328139857,1716930669585,-678.18,0.00028767,2]
[328139858,1716930669594,-607.8,0.00028767,2]
[328139859,1716930669603,-707.12,0.00028767,2]
[328139860,1716930669612,-500.0,0.00028767,2]
[328139861,1716930669621,-2974.94,0.00028767,2]
[328139862,1716930669630,-1217.15,0.00028767,2]
[328139863,1716930669639,-1190.26,0.00028767,2]
[328139864,1716930669649,-592.19,0.00028767,2]
[328139865,1716930669659,-500.0,0.00028767,2]
[328139866,1716930669668,-4371.46,0.00028767,2]
[328139867,1716930669677,-500.0,0.00028767,2]
[328139868,1716930669686,-1044.37,0.00028767,2]
[328139869,1716930669696,-500.0,0.00028767,2]
[328139870,1716930669705,-500.0,0.00028767,2]
[328139871,1716930669714,-513.35,0.00028767,2]
[328139872,1716930669723,-1474.98,0.00028767,2]
[328139873,1716930669733,-151.0,0.00028767,7]
[328139874,1716930669742,-500.0,0.00028767,2]
[328139875,1716930669751,-500.0,0.00028767,2]
[328139876,1716930669760,-3176.31,0.00028767,2]
[328139877,1716930669770,-687.58,0.00028767,2]
[328139878,1716930669779,-151.0,0.00028767,7]
[328139879,1716930669788,-201.380404,0.00028767,7]
[328139880,1716930669799,-3513.06,0.00028767,2]
[328139881,1716930669808,-151.0,0.00028767,7]
[328139882,1716930669818,-576.75,0.00028767,2]
[328139883,1716930669828,-500.0,0.00028767,2]
[328139884,1716930669837,-705.7,0.00028767,2]
[328139885,1716930669847,-503.73,0.00028767,2]
[328139886,1716930669856,-500.0,0.00028767,2]
[328139887,1716930669866,-151.0,0.00028796,7]
[328139888,1716930669876,-151.0,0.00028796,7]
[328139889,1716930669886,-212.964136,0.00028796,7]
[328139890,1716930669896,-282.644554,0.00028796,7]
[328139891,1716930669905,-151.0,0.00028796,7]
[328139892,1716930669914,-282.644554,0.00028796,7]
[328139893,1716930669923,-151.0,0.00028796,7]
[328139894,1716930669932,-524.47,0.000288,2]
[328139895,1716930669941,-949.94,0.000288,2]
[328139896,1716930669950,-166.66666667,0.0002882,2]
[328139897,1716930669959,-500.0,0.0002885,2]
[328139898,1716930669969,-152.67997745,0.00028869,2]
[328139899,1716930669978,-509.43624605,0.000289,2]
[328139900,1716930669988,-2300.0,0.000289,10]
[328139901,1716930669998,-151.0,0.000289,7]
[328139902,1716930670007,-151.0,0.000289,7]
[328139903,1716930670017,-3617.882254,0.000289,7]
[328139904,1716930670027,-3617.882254,0.000289,7]
[328139905,1716930670038,-173.6549,0.000289,7]
[328139906,1716930670049,-151.0,0.000289,7]
[328139907,1716930670058,-291.267652,0.000289,7]
[328139908,1716930670067,-291.267652,0.000289,7]
[328139909,1716930670076,-151.0,0.000289,7]
[328139910,1716930670086,-151.0,0.000289,7]
[328139911,1716930670096,-151.0,0.000289,7]
[328139912,1716930670105,-27215.74,0.0002898,7]
[328139913,1716930670115,-151.0,0.0002898,7]
[328139914,1716930670124,-151.0,0.0002898,7]
[328139915,1716930670134,-151.0,0.0002898,7]
[328139916,1716930670144,-268.062551,0.0002898,7]
[328139917,1716930670153,-152.079673,0.0002898,7]
[328139918,1716930670163,-151.0,0.0002898,7]
[328139919,1716930670173,-152.079673,0.0002898,7]
[328139920,1716930670182,-151.0,0.0002898,7]
[328139921,1716930670192,-306.417667,0.0002898,7]
[328139922,1716930670202,-306.417667,0.0002898,7]
[328139923,1716930670211,-151.0,0.0002898,7]
[328139924,1716930670222,-220.460238,0.0002898,7]
[328139925,1716930670231,-242.35667715,0.00028993,2]
[328139926,1716930670240,-410.67512791,0.00028996,2]
[328139927,1716930670249,-155.49292776,0.00028996,2]
[328139928,1716930670258,-155.0,0.00028996,2]
[328139929,1716930670268,-155.0,0.00028996,2]
[328139930,1716930670277,-155.0,0.00028996,2]
[328139931,1716930670286,-158.60373146,0.00028996,2]
[328139932,1716930670296,-1775.01594021,0.00028996,2]
[328139933,1716930670308,-5515.18694721,0.00028996,2]
[328139934,1716930670318,-155.000001,0.00028997,2]
[328139935,1716930670326,-177.5004176,0.00028997,2]
[328139936,1716930670336,-9161.51745053,0.00028997,2]
[328139937,1716930670345,-15000.0,0.00028997,2]
[328139938,1716930670357,-206.34406,0.00028998,2]
[328139939,1716930670367,-155.9451799,0.00028998,2]
[328139940,1716930670376,-505.4842332,0.00028998,2]
[328139941,1716930670386,-488.01922742,0.00028998,2]
[328139942,1716930670395,-267.82545389,0.00028998,2]
[328139943,1716930670405,-161.35639647,0.00028998,2]
[328139944,1716930670414,-1183.24312898,0.00028998,2]
[328139945,1716930670423,-155.48180859,0.00028998,2]
[328139946,1716930670433,-2223.04939775,0.00028998,7]